fUSD/lending_fUSD_20260530
["ID","MTS","AMOUNT","RATE_DAILY","PERIOD"]
[423404755,1780084888000,-500.0,0.00041315,120]
[423404760,1780084889000,-500.0,0.00041315,120]
[423404761,1780084889000,-2579.97,0.00041315,120]
[423404762,1780084889000,-500.0,0.00041315,120]
[423404763,1780084889000,-500.0,0.00041315,120]
[423404766,1780084889000,-500.0,0.00041315,120]
[423404765,1780084889000,-754.1,0.00041315,120]
[423404764,1780084889000,-500.0,0.00041315,120]
[423404767,1780084889000,-500.0,0.00041315,120]
[423404769,1780084889000,-2388.18,0.00041315,120]
[423404770,1780084889000,-682.16,0.00041315,120]
[423404772,1780084889000,-500.0,0.00041315,120]
[423404771,1780084889000,-1841.85,0.00041315,120]
[423404774,1780084889000,-500.0,0.00041315,120]
[423404773,1780084889000,-505.93,0.00041315,120]
[423404775,1780084889000,-1766.6,0.00041315,120]
[423404768,1780084889000,-500.0,0.00041315,120]
[423404781,1780084890000,-500.0,0.00041315,120]
[423404782,1780084890000,-500.0,0.00041315,120]
[423404780,1780084890000,-895.35,0.00041315,120]
[423404783,1780084890000,-1259.87,0.00041315,120]
[423404778,1780084890000,-850.39,0.00041315,120]
[423404776,1780084890000,-500.0,0.00041315,120]
[423404779,1780084890000,-500.0,0.00041315,120]
[423404777,1780084890000,-609.07,0.00041315,120]
[423404784,1780084890000,-500.0,0.00041315,120]
[423404786,1780084890000,-7448.84,0.00041315,120]
[423404787,1780084890000,-500.0,0.00041315,120]
[423404789,1780084890000,-500.0,0.00041315,120]
[423404788,1780084890000,-2792.76,0.00041315,120]
[423404791,1780084890000,-500.0,0.00041315,120]
[423404790,1780084890000,-500.0,0.00041315,120]
[423404793,1780084890000,-500.0,0.00041315,120]
[423404792,1780084890000,-500.0,0.00041315,120]
[423404785,1780084890000,-500.0,0.00041315,120]
[423404794,1780084891000,-1411.46,0.00041315,120]
[423404796,1780084891000,-500.0,0.00041315,120]
[423404795,1780084891000,-2108.16,0.00041315,120]
[423404797,1780084891000,-500.0,0.00041315,120]
[423404798,1780084891000,-500.0,0.00041315,120]
[423404800,1780084891000,-632.75,0.00041315,120]
[423404799,1780084891000,-500.0,0.00041315,120]
[423404801,1780084891000,-500.0,0.00041315,120]
[423404803,1780084891000,-500.0,0.00041315,120]
[423404804,1780084891000,-3061.77,0.00041315,120]
[423404805,1780084891000,-500.0,0.00041315,120]
[423404806,1780084891000,-500.0,0.00041315,120]
[423404807,1780084891000,-6190.48,0.00041315,120]
[423404808,1780084891000,-500.0,0.00041315,120]
[423404809,1780084891000,-500.0,0.00041315,120]
[423404802,1780084891000,-707.62,0.00041315,120]
[423404817,1780084892000,-500.0,0.00041315,120]
[423404811,1780084892000,-500.0,0.00041315,120]
[423404813,1780084892000,-500.0,0.00041315,120]
[423404812,1780084892000,-500.0,0.00041315,120]
[423404814,1780084892000,-500.0,0.00041315,120]
[423404815,1780084892000,-713.34,0.00041315,120]
[423404816,1780084892000,-500.0,0.00041315,120]
[423404818,1780084892000,-500.0,0.00041315,120]
[423404810,1780084892000,-500.0,0.00041315,120]
[423404820,1780084892000,-500.0,0.00041315,120]
[423404821,1780084892000,-1446.13,0.00041315,120]
[423404822,1780084892000,-932.74,0.00041315,120]
[423404823,1780084892000,-500.0,0.00041315,120]
[423404824,1780084892000,-500.0,0.00041315,120]
[423404825,1780084892000,-500.0,0.00041315,120]
[423404826,1780084892000,-500.0,0.00041315,30]
[423404827,1780084892000,-500.0,0.00041315,120]
[423404819,1780084892000,-1407.3,0.00041315,120]
[423404828,1780084893000,-3609.6,0.00041315,120]
[423404831,1780084893000,-984.52,0.00041315,120]
[423404830,1780084893000,-500.0,0.00041315,120]
[423404832,1780084893000,-2929.36,0.00041315,120]
[423404834,1780084893000,-864.71,0.00041315,120]
[423404833,1780084893000,-500.0,0.00041315,120]
[423404835,1780084893000,-1926.72,0.00041315,120]
[423404829,1780084893000,-1040.34,0.00041315,120]
[423404837,1780084893000,-1041.58,0.00041315,120]
[423404838,1780084893000,-500.0,0.00041315,120]
[423404839,1780084893000,-500.0,0.00041315,120]
[423404840,1780084893000,-687.26,0.00041315,120]
[423404842,1780084893000,-1254.25,0.00041315,120]
[423404843,1780084893000,-500.0,0.00041315,120]
[423404841,1780084893000,-305.1177098,0.00041315,120]
[423404836,1780084893000,-500.0,0.00041315,120]
[423404844,1780084894000,-706.43,0.00041315,120]
[423404845,1780084894000,-500.0,0.00041315,120]
[423404846,1780084894000,-500.0,0.00041315,120]
[423404847,1780084894000,-500.0,0.00041315,120]
[423404848,1780084894000,-500.0,0.00041315,120]
[423404850,1780084894000,-500.0,0.00041315,120]
[423404849,1780084894000,-500.0,0.00041315,120]
[423404852,1780084894000,-3116.75,0.00041315,120]
[423404853,1780084894000,-500.0,0.00041315,120]
[423404854,1780084894000,-759.13,0.00041315,120]
[423404856,1780084894000,-1042.45,0.00041315,120]
[423404855,1780084894000,-583.43,0.00041315,120]
[423404857,1780084894000,-3859.89,0.00041315,120]
[423404851,1780084894000,-2108.93,0.00041315,120]
[423404864,1780084895000,-500.0,0.00041315,120]
[423404858,1780084895000,-3234.67,0.00041315,120]
[423404859,1780084895000,-500.0,0.00041315,120]
[423404860,1780084895000,-500.0,0.00041315,120]
[423404861,1780084895000,-999.41,0.00041315,120]
[423404862,1780084895000,-955.96,0.00041315,120]
[423404863,1780084895000,-500.0,0.00041315,120]
[423404872,1780084895000,-500.0,0.00041315,120]
[423404866,1780084895000,-500.0,0.00041315,120]
[423404867,1780084895000,-500.0,0.00041315,120]
[423404868,1780084895000,-1424.42,0.00041315,120]
[423404869,1780084895000,-671.3,0.00041315,120]
[423404870,1780084895000,-500.0,0.00041315,120]
[423404871,1780084895000,-517.98,0.00041315,120]
[423404873,1780084895000,-1729.64,0.00041315,120]
[423404865,1780084895000,-500.0,0.00041315,120]
[423404874,1780084896000,-663.47,0.00041315,120]
[423404875,1780084896000,-1261.87,0.00041315,120]
[423404876,1780084896000,-500.0,0.00041315,120]
[423404877,1780084896000,-500.0,0.00041315,31]
[423404878,1780084896000,-500.0,0.00041315,120]
[423404879,1780084896000,-500.0,0.00041315,120]
[423404880,1780084896000,-500.0,0.00041315,120]
[423404881,1780084896000,-500.0,0.00041315,120]
[423404882,1780084896000,-1837.52,0.00041315,120]
[423404884,1780084896000,-1936.61,0.00041315,120]
[423404885,1780084896000,-2585.37,0.00041315,120]
[423404886,1780084896000,-944.44,0.00041315,120]
[423404888,1780084896000,-3018.26,0.00041315,120]
[423404887,1780084896000,-500.0,0.00041315,120]
[423404889,1780084896000,-965.27,0.00041315,120]
[423404883,1780084896000,-1408.32,0.00041315,120]
[423404890,1780084897000,-500.0,0.00041315,120]
[423404896,1780084897000,-500.0,0.00041315,120]
[423404892,1780084897000,-500.0,0.00041315,120]
[423404891,1780084897000,-715.96,0.00041315,120]
[423404893,1780084897000,-500.0,0.00041315,120]
[423404894,1780084897000,-968.38,0.00041315,120]
[423404895,1780084897000,-1729.49,0.00041315,120]
[423404897,1780084897000,-1105.64,0.00041315,120]
[423404905,1780084897000,-500.0,0.00041315,120]
[423404899,1780084897000,-500.0,0.00041315,120]
[423404906,1780084897000,-597.64,0.00041315,120]
[423404904,1780084897000,-649.36987608,0.00041315,120]
[423404903,1780084897000,-500.0,0.00041315,120]
[423404898,1780084897000,-3296.28,0.00041315,120]
[423404902,1780084897000,-500.0,0.00041315,120]
[423404900,1780084897000,-909.77,0.00041315,120]
[423404901,1780084897000,-2264.46,0.00041315,120]
[423404907,1780084898000,-500.0,0.00041315,120]
[423404908,1780084898000,-500.0,0.00041315,120]
[423404910,1780084898000,-500.0,0.00041315,120]
[423404909,1780084898000,-564.2,0.00041315,120]
[423404911,1780084898000,-500.0,0.00041315,120]
[423404912,1780084898000,-500.0,0.00041315,120]
[423404913,1780084898000,-686.6,0.00041315,120]
[423404916,1780084898000,-1161.94,0.00041315,120]
[423404917,1780084898000,-500.0,0.00041315,120]
[423404918,1780084898000,-2547.74,0.00041315,120]
[423404919,1780084898000,-500.0,0.00041315,120]
[423404920,1780084898000,-500.0,0.00041315,120]
[423404921,1780084898000,-1338.01,0.00041315,120]
[423404922,1780084898000,-2066.02,0.00041315,120]
[423404915,1780084898000,-893.19,0.00041315,120]
[423404914,1780084898000,-1436.63,0.00041315,120]
[423404929,1780084899000,-1739.65,0.00041315,120]
[423404923,1780084899000,-500.0,0.00041315,120]
[423404924,1780084899000,-979.66,0.00041315,120]
[423404925,1780084899000,-500.0,0.00041315,120]
[423404926,1780084899000,-2291.71,0.00041315,120]
[423404927,1780084899000,-1104.86,0.00041315,120]
[423404928,1780084899000,-500.0,0.00041315,120]
[423404931,1780084899000,-500.0,0.00041315,120]
[423404933,1780084899000,-500.0,0.00041315,120]
[423404932,1780084899000,-2281.31,0.00041315,120]
[423404934,1780084899000,-500.0,0.00041315,120]
[423404936,1780084899000,-500.0,0.00041315,120]
[423404935,1780084899000,-500.0,0.00041315,60]
[423404937,1780084899000,-500.0,0.00041315,120]
[423404938,1780084899000,-500.0,0.00041315,120]
[423404930,1780084899000,-2082.39,0.00041315,120]
[423404939,1780084900000,-676.82,0.00041315,120]
[423404941,1780084900000,-3372.18,0.00041315,120]
[423404940,1780084900000,-1132.11,0.00041315,120]
[423404943,1780084900000,-500.0,0.00041315,120]
[423404942,1780084900000,-500.0,0.00041315,120]
[423404944,1780084900000,-500.0,0.00041315,30]
[423404945,1780084900000,-500.0,0.00041315,120]
[423404946,1780084900000,-500.0,0.00041315,120]
[423404947,1780084900000,-500.0,0.00041315,120]
[423404949,1780084900000,-500.0,0.00041315,120]
[423404951,1780084900000,-500.0,0.00041315,120]
[423404950,1780084900000,-727.26,0.00041315,120]
[423404952,1780084900000,-500.0,0.00041315,120]
[423404953,1780084900000,-500.0,0.00041315,120]
[423404954,1780084900000,-500.0,0.00041315,120]
[423404955,1780084900000,-500.0,0.00041315,120]
[423404948,1780084900000,-1624.19,0.00041315,120]
[423404956,1780084901000,-500.0,0.00041315,120]
[423404957,1780084901000,-500.0,0.00041315,120]
[423404958,1780084901000,-623.82,0.00041315,120]
[423404959,1780084901000,-500.0,0.00041315,120]
[423404961,1780084901000,-1098.09,0.00041315,120]
[423404960,1780084901000,-500.0,0.00041315,120]
[423404963,1780084901000,-594.93,0.00041315,120]
[423404962,1780084901000,-500.0,0.00041315,120]
[423404965,1780084901000,-500.0,0.00041315,120]
[423404967,1780084901000,-701.78,0.00041315,120]
[423404966,1780084901000,-964.0,0.00041315,120]
[423404968,1780084901000,-500.0,0.00041315,120]
[423404969,1780084901000,-1172.8,0.00041315,120]
[423404970,1780084901000,-500.0,0.00041315,120]
[423404971,1780084901000,-500.0,0.00041315,120]
[423404964,1780084901000,-3225.72,0.00041315,120]
[423404972,1780084902000,-500.0,0.00041315,120]
[423404974,1780084902000,-523.93398111,0.00041315,120]
[423404975,1780084902000,-1252.39,0.00041315,120]
[423404977,1780084902000,-500.0,0.00041315,120]
[423404976,1780084902000,-1983.03,0.00041315,120]
[423404978,1780084902000,-581.09383737,0.00041315,120]
[423404980,1780084902000,-500.0,0.00041315,120]
[423404973,1780084902000,-723.81,0.00041315,120]
[423404982,1780084902000,-500.0,0.00041315,120]
[423404981,1780084902000,-1553.75,0.00041315,120]
[423404983,1780084902000,-500.0,0.00041315,120]
[423404984,1780084902000,-500.0,0.00041315,120]
[423404985,1780084902000,-500.0,0.00041315,120]
[423404987,1780084902000,-2167.78,0.00041315,120]
[423404986,1780084902000,-500.0,0.00041315,120]
[423404979,1780084902000,-500.0,0.00041315,120]
[423404988,1780084903000,-500.0,0.00041315,120]
[423404989,1780084903000,-500.0,0.00041315,120]
[423404990,1780084903000,-500.0,0.00041315,120]
[423404991,1780084903000,-500.0,0.00041315,120]
[423404992,1780084903000,-603.03,0.00041315,120]
[423404993,1780084903000,-520.63348904,0.00041315,120]
[423404994,1780084903000,-500.0,0.00041315,120]
[423404997,1780084903000,-1913.41,0.00041315,120]
[423404996,1780084903000,-500.0,0.00041315,120]
[423404999,1780084903000,-500.0,0.00041315,120]
[423404998,1780084903000,-500.0,0.00041315,120]
[423405000,1780084903000,-500.0,0.00041315,120]
[423405001,1780084903000,-500.0,0.00041315,120]
[423404995,1780084903000,-1128.33,0.00041315,120]
[423405005,1780084904000,-500.0,0.00041315,120]
[423405002,1780084904000,-500.0,0.00041315,120]
[423405003,1780084904000,-410.46415205,0.00041315,120]
[423405004,1780084904000,-500.0,0.00041315,120]
[423405006,1780084904000,-500.0,0.00041315,120]
[423405012,1780084904000,-747.09,0.00041315,120]
[423405008,1780084904000,-1153.76,0.00041315,120]
[423405009,1780084904000,-1536.55,0.00041315,120]
[423405010,1780084904000,-598.27117993,0.00041315,60]
[423405011,1780084904000,-500.0,0.00041315,120]
[423405007,1780084904000,-793.92,0.00041315,120]
[423405013,1780084905000,-2156.72,0.00041315,120]
[423405014,1780084905000,-500.0,0.00041315,120]
[423405015,1780084905000,-1105.85,0.00041315,120]
[423405016,1780084905000,-500.0,0.00041315,120]
[423405017,1780084905000,-500.0,0.00041315,120]
[423405018,1780084905000,-2780.99,0.00041315,120]
[423405019,1780084905000,-1354.86,0.00041315,120]
[423405020,1780084905000,-500.0,0.00041315,120]
[423405021,1780084905000,-928.98,0.00041315,120]
[423405022,1780084905000,-500.0,0.00041315,120]
[423405023,1780084906000,-500.0,0.00041315,120]
[423405025,1780084906000,-500.0,0.00041315,120]
[423405024,1780084906000,-548.44,0.00041315,120]
[423405026,1780084906000,-1707.9,0.00041315,120]
[423405027,1780084906000,-500.0,0.00041315,120]
[423405033,1780084906000,-500.0,0.00041315,120]
[423405029,1780084906000,-909.92,0.00041315,120]
[423405030,1780084906000,-500.0,0.00041315,120]
[423405031,1780084906000,-500.0,0.00041315,120]
[423405032,1780084906000,-500.0,0.00041315,120]
[423405034,1780084906000,-500.0,0.00041315,120]
[423405028,1780084906000,-619.05,0.00041315,120]
[423405035,1780084907000,-500.0,0.00041315,90]
[423405036,1780084907000,-500.0,0.00041315,120]
[423405039,1780084907000,-500.0,0.00041315,120]
[423405037,1780084907000,-861.1,0.00041315,120]
[423405038,1780084907000,-500.0,0.00041315,120]
[423405043,1780084907000,-500.0,0.00041315,120]
[423405041,1780084907000,-500.0,0.00041315,120]
[423405042,1780084907000,-553.13,0.00041315,120]
[423405044,1780084907000,-500.0,0.00041315,120]
[423405045,1780084907000,-500.0,0.00041315,120]
[423405040,1780084907000,-1582.76,0.00041315,120]
[423405046,1780084908000,-2592.47,0.00041315,120]
[423405047,1780084908000,-648.15,0.00041315,120]
[423405048,1780084908000,-500.0,0.00041315,120]
[423405050,1780084908000,-500.0,0.00041315,120]
[423405049,1780084908000,-500.0,0.00041315,120]
[423405052,1780084908000,-500.0,0.00041315,120]
[423405053,1780084908000,-500.0,0.00041315,120]
[423405054,1780084908000,-206.12580158,0.00041315,120]
[423405055,1780084908000,-500.0,0.00041315,120]
[423405051,1780084908000,-523.0,0.00041315,120]
[423405061,1780084909000,-2689.08,0.00041315,120]
[423405057,1780084909000,-500.0,0.00041315,120]
[423405056,1780084909000,-500.0,0.00041315,120]
[423405058,1780084909000,-500.0,0.00041315,120]
[423405059,1780084909000,-767.01,0.00041315,120]
[423405060,1780084909000,-500.0,0.00041315,120]
[423405063,1780084909000,-500.0,0.00041315,120]
[423405067,1780084909000,-500.0,0.00041315,120]
[423405065,1780084909000,-500.0,0.00041315,120]
[423405064,1780084909000,-602.27,0.00041315,120]
[423405066,1780084909000,-500.0,0.00041315,120]
[423405068,1780084909000,-500.0,0.00041315,120]
[423405069,1780084909000,-500.0,0.00041315,30]
[423405070,1780084909000,-1805.38,0.00041315,120]
[423405071,1780084909000,-500.0,0.00041315,120]
[423405062,1780084909000,-500.0,0.00041315,120]
[423405077,1780084910000,-512.94,0.00041315,120]
[423405073,1780084910000,-500.0,0.00041315,120]
[423405072,1780084910000,-500.0,0.00041315,120]
[423405074,1780084910000,-641.39,0.00041315,120]
[423405075,1780084910000,-2822.49,0.00041315,120]
[423405076,1780084910000,-861.65,0.00041315,120]
[423405079,1780084910000,-500.0,0.00041315,120]
[423405081,1780084910000,-500.0,0.00041315,120]
[423405080,1780084910000,-500.0,0.00041315,120]
[423405082,1780084910000,-500.0,0.00041315,120]
[423405083,1780084910000,-500.0,0.00041315,120]
[423405084,1780084910000,-500.0,0.00041315,120]
[423405085,1780084910000,-500.0,0.00041315,120]
[423405086,1780084910000,-1566.37,0.00041315,120]
[423405078,1780084910000,-500.0,0.00041315,120]
[423405088,1780084911000,-500.0,0.00041315,120]
[423405087,1780084911000,-3405.86,0.00041315,120]
[423405089,1780084911000,-500.0,0.00041315,120]
[423405090,1780084911000,-500.0,0.00041315,120]
[423405091,1780084911000,-500.0,0.00041315,120]
[423405093,1780084911000,-500.0,0.00041315,120]
[423405094,1780084911000,-500.0,0.00041315,120]
[423405095,1780084911000,-2740.2,0.00041315,120]
[423405097,1780084911000,-720.04,0.00041315,120]
[423405098,1780084911000,-930.59,0.00041315,120]
[423405100,1780084911000,-500.0,0.00041315,120]
[423405099,1780084911000,-500.0,0.00041315,120]
[423405102,1780084911000,-500.0,0.00041315,120]
[423405101,1780084911000,-327.92540872,0.00041315,120]
[423405103,1780084911000,-633.26,0.00041315,120]
[423405096,1780084911000,-509.4977034,0.00041315,120]
[423405109,1780084912000,-857.8,0.00041315,120]
[423405104,1780084912000,-500.0,0.00041315,120]
[423405105,1780084912000,-500.0,0.00041315,120]
[423405106,1780084912000,-987.37,0.00041315,120]
[423405107,1780084912000,-500.0,0.00041315,120]
[423405108,1780084912000,-644.37,0.00041315,120]
[423405110,1780084912000,-500.0,0.00041315,120]
[423405114,1780084912000,-500.0,0.00041315,120]
[423405112,1780084912000,-500.0,0.00041315,120]
[423405119,1780084912000,-500.0,0.00041315,120]
[423405113,1780084912000,-939.79,0.00041315,120]
[423405116,1780084912000,-538.31,0.00041315,120]
[423405115,1780084912000,-500.0,0.00041315,120]
[423405117,1780084912000,-507.75,0.00041315,120]
[423405118,1780084912000,-341.94070657,0.00041315,120]
[423405111,1780084912000,-500.0,0.00041315,120]
[423405120,1780084913000,-500.0,0.00041315,120]
[423405122,1780084913000,-500.0,0.00041315,120]
[423405121,1780084913000,-500.0,0.00041315,120]
[423405124,1780084913000,-500.0,0.00041315,120]
[423405123,1780084913000,-703.79,0.00041315,120]
[423405125,1780084913000,-597.63757585,0.00041315,120]
[423405126,1780084913000,-1005.23,0.00041315,120]
[423405127,1780084913000,-500.0,0.00041315,120]
[423405128,1780084913000,-777.38,0.00041315,120]
[423405130,1780084913000,-500.0,0.00041315,120]
[423405129,1780084913000,-500.0,0.00041315,120]
[423405132,1780084913000,-770.03,0.00041315,120]
[423405131,1780084913000,-514.19,0.00041315,120]
[423405133,1780084913000,-1177.36,0.00041315,120]
[423405135,1780084913000,-500.0,0.00041315,120]
[423405134,1780084913000,-500.0,0.00041315,120]
[423405137,1780084914000,-500.0,0.00041315,120]
[423405136,1780084914000,-3738.57,0.00041315,120]
[423405138,1780084914000,-500.0,0.00041315,120]
[423405139,1780084914000,-500.0,0.00041315,120]
[423405140,1780084914000,-500.0,0.00041315,120]
[423405142,1780084914000,-500.0,0.00041315,120]
[423405141,1780084914000,-797.11,0.00041315,120]
[423405143,1780084914000,-1044.73,0.00041315,120]
[423405144,1780084914000,-500.0,0.00041315,120]
[423405145,1780084914000,-738.4,0.00041315,120]
[423405147,1780084914000,-500.0,0.00041315,120]
[423405146,1780084914000,-1589.0,0.00041315,120]
[423405148,1780084914000,-500.0,0.00041315,120]
[423405149,1780084914000,-500.0,0.00041315,120]
[423405150,1780084914000,-500.0,0.00041315,120]
[423405151,1780084914000,-655.96,0.00041315,120]
[423405152,1780084915000,-1333.51,0.00041315,120]
[423405153,1780084915000,-836.79,0.00041315,120]
[423405155,1780084915000,-500.0,0.00041315,120]
[423405154,1780084915000,-500.0,0.00041315,120]
[423405156,1780084915000,-500.0,0.00041315,120]
[423405157,1780084915000,-500.0,0.00041315,120]
[423405158,1780084915000,-500.0,0.00041315,120]
[423405160,1780084915000,-500.0,0.00041315,120]
[423405159,1780084915000,-500.0,0.00041315,120]
[423405161,1780084915000,-663.88,0.00041315,120]
[423405162,1780084915000,-605.47,0.00041315,120]
[423405163,1780084915000,-2240.31,0.00041315,120]
[423405164,1780084915000,-500.0,0.00041315,120]
[423405165,1780084915000,-826.8,0.00041315,120]
[423405166,1780084915000,-500.0,0.00041315,120]
[423405167,1780084915000,-1685.25,0.00041315,120]
[423405168,1780084916000,-500.0,0.00041315,120]
[423405169,1780084916000,-934.34,0.00041315,120]
[423405171,1780084916000,-500.0,0.00041315,120]
[423405172,1780084916000,-500.0,0.00041315,120]
[423405173,1780084916000,-1217.2,0.00041315,120]
[423405174,1780084916000,-762.81,0.00041315,120]
[423405176,1780084916000,-933.72,0.00041315,120]
[423405170,1780084916000,-1096.13,0.00041315,120]
[423405177,1780084916000,-500.0,0.00041315,120]
[423405179,1780084916000,-339.24729957,0.00041315,120]
[423405178,1780084916000,-500.0,0.00041315,120]
[423405180,1780084916000,-1054.16,0.00041315,120]
[423405183,1780084916000,-500.0,0.00041315,120]
[423405181,1780084916000,-500.0,0.00041315,120]
[423405182,1780084916000,-1403.23,0.00041315,120]
[423405175,1780084916000,-500.0,0.00041315,120]
[423405184,1780084917000,-814.05,0.00041315,120]
[423405185,1780084917000,-500.0,0.00041315,120]
[423405186,1780084917000,-500.0,0.00041315,120]
[423405187,1780084917000,-1445.38,0.00041315,120]
[423405188,1780084917000,-500.0,0.00041315,120]
[423405189,1780084917000,-500.0,0.00041315,120]
[423405191,1780084917000,-500.0,0.00041315,120]
[423405190,1780084917000,-500.0,0.00041315,120]
[423405193,1780084917000,-500.0,0.00041315,120]
[423405192,1780084917000,-500.0,0.00041315,120]
[423405194,1780084917000,-521.31,0.00041315,120]
[423405195,1780084917000,-500.0,0.00041315,120]
[423405196,1780084917000,-809.88,0.00041315,120]
[423405197,1780084917000,-500.0,0.00041315,120]
[423405198,1780084917000,-500.0,0.00041315,120]
[423405201,1780084918000,-611.37,0.00041315,120]
[423405200,1780084918000,-3222.14,0.00041315,120]
[423405202,1780084918000,-500.0,0.00041315,120]
[423405203,1780084918000,-333.68444017,0.00041315,120]
[423405204,1780084918000,-528.99888247,0.00041315,120]
[423405205,1780084918000,-875.27,0.00041315,120]
[423405199,1780084918000,-500.0,0.00041315,120]
[423405207,1780084918000,-500.0,0.00041315,120]
[423405208,1780084918000,-625.23,0.00041315,120]
[423405209,1780084918000,-500.0,0.00041315,120]
[423405210,1780084918000,-754.19,0.00041315,120]
[423405211,1780084918000,-500.0,0.00041315,120]
[423405212,1780084918000,-3165.57,0.00041315,120]
[423405213,1780084918000,-500.0,0.00041315,120]
[423405206,1780084918000,-1163.38,0.00041315,120]
[423405215,1780084919000,-1622.34,0.00041315,120]
[423405216,1780084919000,-500.0,0.00041315,120]
[423405217,1780084919000,-500.0,0.00041315,120]
[423405218,1780084919000,-500.0,0.00041315,120]
[423405219,1780084919000,-500.0,0.00041315,120]
[423405220,1780084919000,-1019.23,0.00041315,120]
[423405214,1780084919000,-1286.78,0.00041315,120]
[423405222,1780084919000,-500.0,0.00041315,120]
[423405223,1780084919000,-500.0,0.00041315,120]
[423405225,1780084919000,-500.0,0.00041315,120]
[423405224,1780084919000,-500.0,0.00041315,120]
[423405226,1780084919000,-500.0,0.00041315,120]
[423405227,1780084919000,-500.0,0.00041315,120]
[423405228,1780084919000,-500.0,0.00041315,120]
[423405221,1780084919000,-500.0,0.00041315,120]
[423405229,1780084920000,-517.23020402,0.00041315,120]
[423405231,1780084920000,-500.0,0.00041315,120]
[423405230,1780084920000,-500.0,0.00041315,120]
[423405232,1780084920000,-2899.31,0.00041315,120]
[423405233,1780084920000,-500.0,0.00041315,120]
[423405234,1780084920000,-500.0,0.00041315,120]
[423405236,1780084920000,-555.29,0.00041315,120]
[423405238,1780084920000,-500.0,0.00041315,120]
[423405237,1780084920000,-500.0,0.00041315,120]
[423405239,1780084920000,-500.0,0.00041315,120]
[423405240,1780084920000,-500.0,0.00041315,120]
[423405242,1780084920000,-2170.36,0.00041315,120]
[423405241,1780084920000,-500.0,0.00041315,120]
[423405235,1780084920000,-793.65,0.00041315,120]
[423405247,1780084921000,-500.0,0.00041315,120]
[423405243,1780084921000,-500.0,0.00041315,120]
[423405244,1780084921000,-500.0,0.00041315,120]
[423405245,1780084921000,-500.0,0.00041315,120]
[423405246,1780084921000,-500.0,0.00041315,120]
[423405248,1780084921000,-500.0,0.00041315,120]
[423405249,1780084921000,-500.0,0.00041315,120]
[423405257,1780084921000,-500.0,0.00041315,120]
[423405251,1780084921000,-500.0,0.00041315,120]
[423405252,1780084921000,-503.85,0.00041315,120]
[423405253,1780084921000,-500.0,0.00041315,120]
[423405254,1780084921000,-500.0,0.00041315,120]
[423405255,1780084921000,-500.0,0.00041315,120]
[423405256,1780084921000,-500.0,0.00041315,120]
[423405250,1780084921000,-500.0,0.00041315,120]
[423405258,1780084922000,-500.0,0.00041315,120]
[423405259,1780084922000,-500.0,0.00041315,120]